fUST/lending_fUST_20260324
["ID","MTS","AMOUNT","RATE_DAILY","PERIOD"]
[408862623,1774343962103,-1328.96,0.00033296,60]
[408862624,1774343962127,-154.7,0.00033296,60]
[408862625,1774343962150,-159.54519583,0.00033355,30]
[408862626,1774343962173,-157.0,0.00033355,30]
[408862627,1774343962195,-659.0,0.00033382,90]
[408862628,1774343962219,-1328.96,0.00033396,60]
[408862629,1774343962241,-154.7,0.00033396,60]
[408862630,1774343962265,-1328.96,0.00033496,60]
[408862631,1774343962288,-154.7,0.00033496,60]
[408862632,1774343962310,-427.0,0.00033568,30]
[408862633,1774343962332,-436.0,0.00033568,30]
[408862634,1774343962354,-1328.96,0.00033596,60]
[408862635,1774343962377,-154.7,0.00033596,60]
[408862636,1774343962400,-1328.96,0.00033696,60]
[408862637,1774343962423,-154.7,0.00033696,60]
[408862638,1774343962446,-1328.96,0.00033796,60]
[408862639,1774343962469,-154.7,0.00033796,60]
[408862640,1774343962493,-1328.96,0.00033896,60]
[408862641,1774343962514,-154.79808167,0.00033896,60]
[408862642,1774343962536,-2500.0,0.000339,120]
[408862643,1774343962559,-1328.96,0.00033996,60]
[408862644,1774343962582,-171.9165859,0.00034,120]
[408862645,1774343962605,-1328.96,0.00034096,60]
[408862646,1774343962627,-167.2708,0.00034143,30]
[408862647,1774343962651,-1328.96,0.00034196,60]
[408862648,1774343962673,-1328.96,0.00034296,60]
[408862649,1774343962696,-157.0,0.00034355,30]
[408862650,1774343962721,-16726.31,0.00034394,30]
[408862651,1774343962747,-1328.96,0.00034396,60]
[408862652,1774343962772,-1111.14,0.00034399,60]
[408862653,1774343962796,-1328.96,0.00034496,60]
[408862654,1774343962819,-1111.14,0.00034499,60]
[408862655,1774343962842,-356.7184,0.000345,20]
[408862656,1774343962868,-1215.025,0.000345,30]
[408862657,1774343962892,-1215.02,0.000345,30]
[408862658,1774343962916,-1211.095,0.000345,30]
[408862659,1774343962941,-1211.09,0.000345,30]
[408862660,1774343962967,-1328.96,0.00034596,60]
[408862661,1774343962990,-1111.14,0.00034599,60]
[408862662,1774343963046,-697.0,0.00034693,30]
[408862663,1774343963068,-433.0,0.00034693,30]
[408862664,1774343963092,-1328.96,0.00034696,60]
[408862665,1774343963116,-1111.14,0.00034699,60]
[408862666,1774343963139,-200.0,0.00034707,120]
[408862667,1774343963161,-212.46,0.00034709,120]
[408862668,1774343963185,-157.0,0.00034709,120]
[408862669,1774343963208,-157.0,0.00034709,120]
[408862670,1774343963231,-154.0,0.00034709,120]
[408862671,1774343963256,-1328.96,0.00034796,60]
[408862672,1774343963281,-1111.14,0.00034799,60]
[408862673,1774343963306,-1328.96,0.00034896,60]
[408862674,1774343963329,-1111.14,0.00034899,60]
[408862675,1774343963351,-2500.0,0.000349,120]
[408862676,1774343963373,-427.0,0.0003491,30]
[408862677,1774343963397,-1328.96,0.00034996,60]
[408862678,1774343963420,-1111.14,0.00034999,60]
[408862679,1774343963442,-150.0,0.00035,69]
[408862680,1774343963465,-190.0,0.00035,120]
[408862681,1774343963489,-100214.46821129,0.00035,120]
[408862682,1774343963515,-200.0,0.00035,120]
[408862683,1774343963541,-1328.96,0.00035096,60]
[408862684,1774343963564,-1111.14,0.00035099,60]
[408862685,1774343963587,-427.0,0.00035166,30]
[408862686,1774343963610,-1328.96,0.00035196,60]
[408862687,1774343963633,-1111.14,0.00035199,60]
[408862688,1774343963656,-318.7212,0.000352,30]
[408862689,1774343963679,-408.5892,0.000352,30]
[408862690,1774343963701,-847.9112,0.000352,60]
[408862691,1774343963724,-1328.96,0.00035296,60]
[408862692,1774343963747,-1111.14,0.00035299,60]
[408862693,1774343963770,-1328.96,0.00035396,60]
[408862694,1774343963794,-1111.14,0.00035399,60]
[408862695,1774343963818,-200.0,0.00035401,120]
[408862696,1774343963843,-1328.96,0.00035496,60]
[408862697,1774343963870,-1111.14,0.00035499,60]
[408862698,1774343963894,-190.0,0.000355,120]
[408862699,1774343963919,-1328.96,0.00035596,60]
[408862700,1774343963942,-1111.14,0.00035599,60]
[408862701,1774343963964,-1602.56726973,0.00035616,120]
[408862702,1774343963988,-1328.96,0.00035696,60]
[408862703,1774343964013,-1111.14,0.00035699,60]
[408862704,1774343964037,-160.0,0.000357,120]
[408862705,1774343964061,-157.0,0.00035709,120]
[408862706,1774343964085,-157.0,0.00035709,120]
[408862707,1774343964107,-154.0,0.00035709,120]
[408862708,1774343964132,-1328.96,0.00035796,60]
[408862709,1774343964156,-1111.14,0.00035799,60]
[408862710,1774343964180,-1328.96,0.00035896,60]
[408862711,1774343964203,-1111.14,0.00035899,60]
[408862712,1774343964226,-347.08077982,0.000359,120]
[408862713,1774343964249,-245.97651211,0.000359,120]
[408862714,1774343964272,-190.25985979,0.000359,120]
[408862715,1774343964295,-177.40826495,0.000359,120]
[408862716,1774343964317,-181.07239584,0.000359,120]
[408862717,1774343964340,-412.01420815,0.000359,120]
[408862718,1774343964362,-471.98698871,0.000359,120]
[408862719,1774343964385,-295.74047485,0.000359,120]
[408862720,1774343964408,-176.59110564,0.000359,120]
[408862721,1774343964431,-931.96577301,0.000359,120]
[408862722,1774343964454,-232.03514156,0.000359,120]
[408862723,1774343964478,-521.88622967,0.000359,120]
[408862724,1774343964500,-167.6707706,0.000359,120]
[408862725,1774343964522,-2500.0,0.000359,120]
[408862726,1774343964544,-190.0,0.000359,120]
[408862727,1774343964568,-1328.96,0.00035996,60]
[408862728,1774343964591,-1111.14,0.00035999,60]
[408862729,1774343964616,-1000.0,0.00036,120]
[408862730,1774343964753,-1000.0,0.00036,120]
[408862731,1774343964782,-1328.96,0.00036096,60]
[408862732,1774343964807,-1111.14,0.00036099,60]
[408862733,1774343964831,-1328.96,0.00036196,60]
[408862734,1774343964859,-1111.14,0.00036199,60]
[408862735,1774343964895,-427.0,0.00036253,30]
[408862736,1774343964923,-1328.96,0.00036296,60]
[408862737,1774343964951,-1111.14,0.00036299,60]
[408862738,1774343964978,-1328.96,0.00036396,60]
[408862739,1774343965005,-1111.14,0.00036399,60]
[408862740,1774343965032,-190.0,0.000364,120]
[408862741,1774343965059,-1328.96,0.00036496,60]
[408862742,1774343965085,-1111.14,0.00036499,60]
[408862743,1774343965111,-1901.78,0.000365,120]
[408862744,1774343965137,-1294.1736,0.000365,120]
[408862745,1774343965163,-1444.322,0.000365,120]
[408862746,1774343965191,-1329.2832873,0.00036596,60]
[408862747,1774343965217,-1111.14,0.00036599,60]
[408862748,1774343965242,-8516.88022596,0.00036645,99]
[408862749,1774343965268,-1111.14,0.00036699,60]
[408862750,1774343965293,-157.0,0.00036709,120]
[408862751,1774343965316,-157.0,0.00036709,120]
[408862752,1774343965340,-154.0,0.00036709,120]
[408862753,1774343965364,-427.0,0.00036765,30]
[408862754,1774343965389,-1111.14,0.00036799,60]
[408862755,1774343965414,-1111.14,0.00036899,60]
[408862756,1774343965438,-347.08077982,0.000369,120]
[408862757,1774343965463,-245.97651211,0.000369,120]
[408862758,1774343965492,-190.25985979,0.000369,120]
[408862759,1774343965517,-181.07239584,0.000369,120]
[408862760,1774343965543,-412.01420815,0.000369,120]
[408862761,1774343965567,-471.98698871,0.000369,120]
[408862762,1774343965591,-176.59110564,0.000369,120]
[408862763,1774343965616,-931.96577301,0.000369,120]
[408862764,1774343965640,-295.74047485,0.000369,120]
[408862765,1774343965665,-232.03514156,0.000369,120]
[408862766,1774343965690,-521.88622967,0.000369,120]
[408862767,1774343965714,-2500.0,0.000369,120]
[408862768,1774343965740,-190.0,0.000369,120]
[408862769,1774343965764,-20071.57,0.00036973,30]
[408862770,1774343965789,-1111.14,0.00036999,60]
[408862771,1774343965813,-1243.0,0.00037,120]
[408862772,1774343965835,-10000.0,0.00037,60]
[408862773,1774343965862,-1111.14,0.00037099,60]
[408862774,1774343965888,-1111.14,0.00037199,60]
[408862775,1774343965913,-1111.14,0.00037299,60]
[408862776,1774343965940,-199.57191238,0.000373,60]
[408862777,1774343965964,-190.0,0.000373,120]
[408862778,1774343965990,-1111.14,0.00037399,60]
[408862779,1774343966014,-1111.14,0.00037499,60]
[408862780,1774343966038,-1000000.0,0.000375,30]
[408862781,1774343966063,-427.0,0.00037596,30]
[408862782,1774343966092,-1111.23430571,0.00037599,60]
[408862783,1774343966116,-2760.7593006,0.000376,30]
[408862784,1774343966141,-157.0,0.00037709,120]
[408862785,1774343966167,-157.0,0.00037709,120]
[408862786,1774343966192,-154.0,0.00037709,120]
[408862787,1774343966218,-190.0,0.000378,120]
[408862788,1774343966242,-3637.13962331,0.000378,90]
[408862789,1774343966268,-500.35141714,0.000378,120]
[408862790,1774343966294,-2500.0,0.000379,120]
[408862791,1774343966318,-347.08077982,0.00038,120]
[408862792,1774343966342,-245.97651211,0.00038,120]
[408862793,1774343966367,-190.25985979,0.00038,120]
[408862794,1774343966390,-181.07239584,0.00038,120]
[408862795,1774343966413,-412.01420815,0.00038,120]
[408862796,1774343966436,-471.98698871,0.00038,120]
[408862797,1774343966458,-176.59110564,0.00038,120]
[408862798,1774343966484,-931.96577301,0.00038,120]
[408862799,1774343966509,-295.74047485,0.00038,120]
[408862800,1774343966532,-232.03514156,0.00038,120]
[408862801,1774343966555,-521.88622967,0.00038,120]
[408862802,1774343966578,-342.00988723,0.00038,120]
[408862803,1774343966604,-1000.0,0.00038,120]
[408862804,1774343966629,-500.0,0.00038,30]
[408862805,1774343966660,-500.0,0.00038,30]
[408862806,1774343966683,-500.0,0.00038,30]
[408862807,1774343966707,-500.0,0.00038,30]
[408862808,1774343966731,-500.0,0.00038,30]
[408862809,1774343966754,-527.92587103,0.00038,30]
[408862810,1774343966821,-200.0,0.00038196,120]
[408862811,1774343966846,-190.0,0.000382,120]
[408862812,1774343966872,-200.0,0.00038231,120]
[408862813,1774343966897,-427.0,0.00038363,90]
[408862814,1774343966920,-452.8,0.000386,120]
[408862815,1774343966944,-190.0,0.000387,120]
[408862816,1774343966968,-157.0,0.00038709,120]
[408862817,1774343966991,-157.0,0.00038709,120]
[408862818,1774343967015,-154.0,0.00038709,120]
[408862819,1774343967041,-200.0,0.00038722,120]
[408862820,1774343967068,-2500.0,0.000389,120]
[408862821,1774343967104,-427.0,0.00038938,90]
[408862822,1774343967129,-1002.0,0.00039,30]
[408862823,1774343967155,-1000.0,0.00039,120]
[408862824,1774343967179,-2035.65,0.00039,30]
[408862825,1774343967203,-347.08077982,0.000392,120]
[408862826,1774343967228,-245.97651211,0.000392,120]
[408862827,1774343967253,-190.25985979,0.000392,120]
[408862828,1774343967277,-181.07239584,0.000392,120]
[408862829,1774343967301,-412.01420815,0.000392,120]
[408862830,1774343967328,-471.98698871,0.000392,120]
[408862831,1774343967352,-176.59110564,0.000392,120]
[408862832,1774343967376,-931.96577301,0.000392,120]
[408862833,1774343967400,-295.74047485,0.000392,120]
[408862834,1774343967425,-232.03514156,0.000392,120]
[408862835,1774343967449,-521.88622967,0.000392,120]
[408862836,1774343967479,-2500.0,0.000392,120]
[408862837,1774343967505,-190.0,0.000392,120]
[408862838,1774343967531,-2500.0,0.000394,120]
[408862839,1774343967556,-2500.0,0.000395,120]
[408862840,1774343967581,-23416.84,0.00039553,30]
[408862841,1774343967607,-200.0,0.00039575,120]
[408862842,1774343967631,-2500.0,0.000396,120]
[408862843,1774343967656,-1456.17,0.000396,120]
[408862844,1774343967682,-190.0,0.000396,120]
[408862845,1774343967706,-157.0,0.00039709,120]
[408862846,1774343967731,-157.0,0.00039709,120]
[408862847,1774343967756,-154.0,0.00039709,120]
[408862848,1774343967781,-1412.41481105,0.00039798,23]
[408862849,1774343967805,-1462.00563223,0.000398,120]
[408862850,1774343967829,-911791.0794243,0.000398,120]
[408862851,1774343967856,-2237.41553562,0.000399,120]
[408862852,1774343967881,-2500.0,0.000399,120]
[408862853,1774343967907,-250.60720817,0.00039928,60]
[408862854,1774343967932,-152.100042,0.00039998,30]
[408862855,1774343967956,-429.318,0.00039998,30]
[408862856,1774343967980,-2172.47025193,0.00039998,30]
[408862857,1774343968005,-156.587,0.00039998,30]
[408862858,1774343968029,-156.587,0.00039998,30]
[408862859,1774343968054,-151.0,0.00039998,30]
[408862860,1774343968078,-160.39035449,0.00039998,30]
[408862861,1774343968106,-518.5,0.00039998,30]
[408862862,1774343968129,-156.58700002,0.00039998,30]
[408862863,1774343968152,-2074.0,0.00039998,30]
[408862864,1774343968179,-518.5,0.00039998,30]
[408862865,1774343968203,-151.0,0.00039999,30]
[408862866,1774343968226,-5000.0,0.00039999,30]
[408862867,1774343968251,-222.0,0.00039999,30]
[408862868,1774343968275,-2999.0,0.00039999,30]
[408862869,1774343968297,-151.02710173,0.00039999,30]
[408862870,1774343968321,-414.0,0.00039999,30]
[408862871,1774343968346,-151.0,0.00039999,30]
[408862872,1774343968370,-151.0,0.00039999,30]
[408862873,1774343968395,-2999.0,0.00039999,30]
[408862874,1774343968422,-2999.0,0.00039999,30]
[408862875,1774343968448,-2999.0,0.00039999,30]
[408862876,1774343968474,-151.0,0.00039999,30]
[408862877,1774343968500,-2999.0,0.00039999,30]
[408862878,1774343968525,-1888.00000001,0.00039999,30]
[408862879,1774343968548,-2999.0,0.00039999,30]
[408862880,1774343968571,-160.0,0.00039999,30]
[408862881,1774343968594,-2999.0,0.00039999,30]
[408862882,1774343968617,-2999.0,0.00039999,30]
[408862883,1774343968641,-500.0,0.00039999,30]
[408862884,1774343968664,-2999.0,0.00039999,30]
[408862885,1774343968687,-151.0,0.00039999,30]
[408862886,1774343968710,-2999.0,0.00039999,30]
[408862887,1774343968733,-2999.0,0.00039999,30]
[408862888,1774343968756,-2999.0,0.00039999,30]
[408862889,1774343968781,-2999.0,0.00039999,30]
[408862890,1774343968805,-2999.0,0.00039999,30]
[408862891,1774343968828,-2999.76638167,0.00039999,30]
[408862892,1774343968854,-2000.0,0.00039999,30]
[408862893,1774343968877,-1000.0,0.00039999,30]
[408862894,1774343968904,-500.0,0.00039999,30]
[408862895,1774343968929,-1037.0,0.00039999,30]
[408862896,1774343968952,-1075.369,0.00039999,30]
[408862897,1774343968975,-1115.157653,0.00039999,30]
[408862898,1774343968997,-1156.41848616,0.00039999,30]
[408862899,1774343969023,-1199.20597015,0.00039999,30]
[408862900,1774343969048,-1243.57659104,0.00039999,30]
[408862901,1774343969073,-1289.58892491,0.00039999,30]
[408862902,1774343969097,-1337.30371513,0.00039999,30]
[408862903,1774343969122,-1386.78395259,0.00039999,30]
[408862904,1774343969147,-1438.09495884,0.00039999,30]
[408862905,1774343969173,-1491.30447232,0.00039999,30]
[408862906,1774343969200,-1546.48273779,0.00039999,30]
[408862907,1774343969224,-1603.70259909,0.00039999,30]
[408862908,1774343969251,-1663.03959526,0.00039999,30]
[408862909,1774343969275,-1724.57206028,0.00039999,30]
[408862910,1774343969301,-1788.38122651,0.00039999,30]
[408862911,1774343969326,-1469.32873638,0.00039999,30]
[408862912,1774343969349,-977738.61083515,0.0004,120]
[408862913,1774343969374,-521898.66773422,0.0004,120]
[408862914,1774343985055,-182.74367198,0.000332,117]
[408862915,1774343985349,-223.4,0.00035,60]
[408862916,1774343985376,-167.8666245,0.000359,120]
[408862917,1774343985405,-2399.92,0.00036,120]
[408862918,1774343985435,-223.4,0.000364,60]
[408862919,1774343985465,-167.8666245,0.00037,120]
[408862920,1774343985493,-2399.92,0.0003744,120]
[408862921,1774343985521,-223.4,0.00037856,60]
[408862922,1774343985548,-167.8666245,0.000381,120]
[408862923,1774343985574,-2111.11,0.00038549,60]
[408862924,1774343985600,-2248.39,0.00038876,60]
[408862925,1774343985626,-2399.92,0.00038937,120]
[408862926,1774343985657,-14840.36,0.00038999,120]
[408862927,1774343985683,-800.94,0.00039,60]
[408862928,1774343985712,-223.4,0.0003937,60]
[408862929,1774343985741,-3071027.96141689,0.0004,120]
[408862930,1774343985768,-459599.0,0.0004,120]
[408862931,1774343985795,-11087.0,0.0004,120]
[408862932,1774343985823,-7064.0,0.0004,60]
[408862933,1774343985849,-20312.90879978,0.0004,30]
[408862934,1774343985878,-151934.40681744,0.0004,120]
[408862935,1774343985904,-1000.0,0.0004,120]
[408862936,1774343985932,-403.4,0.0004,20]
[408862937,1774343985958,-5000.0,0.0004,30]
[408862938,1774343985983,-168.0,0.0004,120]
[408862939,1774343986007,-205175.63697319,0.0004,120]
[408862940,1774343986031,-10000.0,0.0004,120]
[408862941,1774343986055,-28447.18244722,0.0004,120]
[408862942,1774343990089,-201.26021027,0.000359,120]
[408862943,1774343990114,-201.26021027,0.00037,120]
[408862944,1774343990138,-373.0,0.00038,30]
[408862945,1774343990161,-201.26021027,0.000381,120]
[408862946,1774343990184,-373.0,0.0003863,90]
[408862947,1774343990208,-201.26021027,0.000393,120]
[408862948,1774343990231,-3998448.95915892,0.0004,120]
[408862949,1774343994673,-4000000.0,0.0004,120]
[408862950,1774344376458,151.0,0.00013,120]
[408862952,1774344384345,236.46,0.0001,26]
[408862953,1774344384653,236.46,0.0001,27]
[408862954,1774344385295,172.93,0.0001,27]
[408862955,1774344415175,151.0,0.00013,120]
[408862956,1774344445836,151.0,0.00013,120]
[408862957,1774344485224,151.0,0.00013,120]
[408862958,1774344526430,151.0,0.00013,120]
[408862959,1774344576210,151.0,0.00013,120]
[408862987,1774344631674,-590.0,0.00012042,2]
[408862989,1774344631684,-300.0,0.00012042,2]
[408862991,1774344631694,-1000.0,0.00013699,2]
[408862993,1774344631703,-251.46609213,0.00014671,2]
[408862995,1774344631712,-852.73959131,0.000158,2]
[408862997,1774344631721,-300.0,0.00015837,2]
[408862999,1774344631730,-298.0,0.00015837,2]
[408863001,1774344631740,-500.0,0.00015838,2]
[408863003,1774344631749,-215.91287376,0.00015838,2]
[408863283,1774344684313,158.41,0.0001,26]
[408863285,1774345747708,-300.0,0.00013026,2]
[408863286,1774345747730,-5000.0,0.00013027,2]
[408863287,1774345747751,-3720.1722577,0.00013027,2]
[408863288,1774345748144,-300.0,0.00013027,2]
[408863289,1774345748165,-311.0,0.00013426,2]
[408863290,1774345748878,-175.01,0.00013426,2]
[408863305,1774345831834,-611.0,0.00013426,2]
[408863307,1774345831843,-1304.81224928,0.00013533,2]
[408863309,1774345831852,-2887.51759299,0.00013633,2]
[408863311,1774345831861,-156.0,0.00013699,2]
[408863313,1774345831870,-1000.0,0.00013699,2]
[408863314,1774345831879,-1200.0,0.00013832,2]
[408863316,1774345831889,-2277.27654145,0.00013833,2]
[408863350,1774345838025,-981.96356169,0.00013833,2]
[408863352,1774345838035,-3527.01668153,0.00013933,2]
[408863354,1774345838044,-167.033404,0.0001462,2]
[408863356,1774345838053,-1000.0,0.000147,2]
[408863358,1774345838062,-358.181942,0.00015068,2]
[408863360,1774345838071,-500.0,0.00015538,2]
[408863363,1774345838080,-477.78044774,0.00015538,2]
[408863365,1774345838092,-500.0,0.00015538,2]
[408863367,1774345838101,-500.0,0.00015538,2]
[408863368,1774345838110,-500.0,0.00015538,2]
[408863369,1774345838119,-500.0,0.00015538,2]
[408863371,1774345838128,-500.0,0.00015538,2]
[408863373,1774345838136,-500.0,0.00015538,2]
[408863374,1774345838146,-500.0,0.00015538,2]
[408863375,1774345838155,-500.0,0.00015538,2]
[408863376,1774345838164,-500.0,0.00015538,2]
[408863377,1774345838173,-500.0,0.00015538,2]
[408863378,1774345838182,-544.78847886,0.00015538,2]
[408863379,1774345838191,-500.0,0.00015538,2]
[408863380,1774345838200,-500.0,0.00015538,2]
[408863381,1774345838209,-500.0,0.00015538,2]
[408863382,1774345838218,-500.0,0.00015538,2]
[408863383,1774345838227,-500.0,0.00015538,2]
[408863384,1774345838237,-500.0,0.00015538,2]
[408863385,1774345838246,-500.0,0.00015538,2]
[408863386,1774345838255,-319.19506237,0.00015538,2]
[408863387,1774345838265,-500.0,0.00015538,2]
[408863388,1774345838274,-500.0,0.00015538,2]
[408863389,1774345838282,-500.0,0.00015538,2]
[408863390,1774345838291,-500.0,0.00015538,2]
[408863391,1774345838300,-500.0,0.00015538,2]
[408863392,1774345838309,-500.0,0.00015538,2]
[408863393,1774345838318,-808.37874452,0.00015539,2]
[408863551,1774345846285,-10926.73281355,0.00015539,2]
[408863552,1774345846297,-27518.82939666,0.00015539,2]
[408863553,1774345846338,-12114.52294774,0.00015539,2]
[408863554,1774345846502,-1940.63758161,0.00015539,2]
[408863558,1774345846732,-196.59006515,0.00015539,2]
[408863559,1774345846743,-1071.17345952,0.00015539,2]
[408863562,1774346964013,150.0,0.0001,24]
[408863588,1774347032044,-1349.64553418,0.00012897,2]
[408863599,1774347038197,-2714.50587312,0.00012897,2]
[408863600,1774347038207,-605.0,0.00013027,2]
[408863601,1774347038216,-1000.0,0.00013699,2]
[408863602,1774347038226,-176.19316576,0.00014349,2]
[408863603,1774347038236,-152.0,0.00014564,2]
[408863604,1774347038246,-300.0,0.00015116,2]
[408863605,1774347038255,-1742.6764359,0.00015117,2]
[408863606,1774347038264,-1272.5734852,0.00015117,2]
[408863607,1774347038274,-827.0391376,0.00015117,2]
[408863608,1774347038285,-317.96272121,0.00015117,2]
[408863655,1774347040698,-249.85104699,0.00015117,2]
[408863657,1774347040708,-439.11315319,0.00015257,2]
[408863659,1774347040717,-308.5,0.00015482,2]
[408863661,1774347040726,-691.67152518,0.00015537,2]
[408863665,1774347040751,-1000.0,0.00015537,2]
[408863667,1774347040763,-253.40044163,0.00015537,2]
[408863669,1774347040773,-288.0,0.00015538,2]
[408863671,1774347040782,-352.5701654,0.000156,4]
[408863673,1774347040794,-478.5717152,0.000156,4]
[408863675,1774347040804,-617.44271704,0.000156,4]
[408863924,1774347045754,-1568.38083042,0.000156,4]
[408863925,1774347045764,-879.29030446,0.000156,4]
[408863929,1774347045923,-975.60027917,0.000156,4]
[408863930,1774347045933,-2075.97330238,0.000156,4]
[408863931,1774347045943,-500.0,0.00015637,2]
[408863932,1774347045954,-500.0,0.00015637,2]
[408863933,1774347045964,-607.75870655,0.00015637,2]
[408863934,1774347045974,-500.0,0.00015637,2]
[408863936,1774347045983,-500.0,0.00015637,2]
[408863938,1774347045993,-334.44631342,0.00015637,2]
[408863939,1774347046002,-500.0,0.00015637,2]
[408863941,1774347046011,-500.0,0.00015637,2]
[408863943,1774347046021,-500.0,0.00015637,2]
[408863945,1774347046031,-500.0,0.00015637,2]
[408863947,1774347046040,-500.0,0.00015637,2]
[408863949,1774347046051,-204.78847886,0.00015637,2]
[408863951,1774347046062,-500.0,0.00015637,2]
[408863952,1774347046072,-500.0,0.00015637,2]
[408863953,1774347046082,-500.0,0.00015637,2]
[408863954,1774347046091,-500.0,0.00015637,2]
[408863955,1774347046101,-500.0,0.00015637,2]
[408863956,1774347046111,-500.0,0.00015637,2]
[408863957,1774347046121,-500.0,0.00015637,2]
[408863958,1774347046131,-500.0,0.00015637,2]
[408863959,1774347046140,-500.0,0.00015637,2]
[408863961,1774347046150,-500.0,0.00015637,2]
[408863963,1774347046160,-500.0,0.00015637,2]
[408863964,1774347046169,-500.0,0.00015637,2]
[408863965,1774347046178,-500.0,0.00015637,2]
[408863966,1774347046188,-500.0,0.00015637,2]
[408863967,1774347046198,-73301.43291962,0.00015638,2]
[408863968,1774347046210,-5439.00311301,0.00015638,2]
[408863969,1774347046222,-500.0,0.00015638,2]
[408863970,1774347046251,-10772.84380076,0.00015638,2]
[408863971,1774347046265,-10476.01497575,0.00015638,2]
[408863973,1774347046309,-686.84806561,0.00015638,2]
[408863974,1774347046322,-524.0,0.00015638,2]
[408863975,1774347130933,343.0,0.0001,30]
[408863976,1774347130956,14.56,0.0001,30]
[408864360,1774348247091,-282.24476405,0.00013699,2]
[408864361,1774348247102,-717.75523595,0.00013699,2]
[408864362,1774348247111,-2581.13126185,0.00014,2]
[408864474,1774349438453,-1677.61615989,0.00013027,2]
[408864476,1774349438465,-1120.73347905,0.00013027,2]
[408864478,1774349438474,-1804.78089886,0.00013364,2]
[408864480,1774349438483,-1940.51444362,0.00013464,2]
[408864482,1774349438493,-2088.77792739,0.00013564,2]
[408864484,1774349438502,-236.96349148,0.00013699,2]
[408864487,1774349438513,-763.03650852,0.00013699,2]
[408864489,1774349438522,-224.59178549,0.00013764,2]
[408864643,1774349444510,-2160.71310966,0.00013764,2]
[408864644,1774349444520,-500.0,0.00013999,2]
[408864645,1774349444529,-500.0,0.00013999,2]
[408864646,1774349444539,-607.75870655,0.00013999,2]
[408864648,1774349444548,-14149.01042379,0.00014,2]
[408864650,1774349444564,-2396.80125866,0.00014,2]
[408864651,1774349444575,-516.18624117,0.00014112,2]
[408864652,1774349444587,-602.32525747,0.00014112,2]
[408864677,1774349446681,-326.80997663,0.00014112,2]
[408864678,1774349446691,-604.88689294,0.00014112,2]
[408864686,1774350048128,454.93733139,0.0001,30]
[408864687,1774350338350,-388.57958789,6.025e-05,2]
[408864688,1774350338485,-414.48375,6.025e-05,2]
[408864719,1774350631631,-701.7799,5.673e-05,2]
[408864721,1774350631659,-324.96429004,5.673e-05,2]
[408864723,1774350631688,-1394.45222364,5.73e-05,2]
[408864725,1774350631704,-2480.14007437,5.788e-05,2]
[408864931,1774350637692,-424.93922798,5.788e-05,2]
[408864932,1774350637748,-2094.92069765,5.788e-05,2]
[408864933,1774350637757,-191.590741,6.595e-05,2]
[408864934,1774350637766,-191.590741,9.892e-05,2]
[408864935,1774350637775,-1046.9090788,0.000121,2]
[408864936,1774350637784,-34.82517158,0.00013,2]
[408864937,1774350637795,-492.17482842,0.00013,2]
[408864938,1774350637806,-191.590741,0.00013189,2]
[408864939,1774350637815,-202.23443058,0.0001328,2]
[408864972,1774350640283,-1719.26634701,0.0001328,2]
[408864974,1774350640294,-5026.14641581,0.0001328,2]
[408864975,1774350640304,-249.96719436,0.00013699,2]
[408864976,1774350640336,-380.36253887,0.00013699,2]